Cogmind - Beta 16 @@@ ROGUE MODE // 2025.12.25 @ 21:18:05 Player: BlobtheGreat Result: Destroyed by S-10 Pest with Light Assault Rifle Performance ------------- Evolutions (0) 0 Regions Visited (2) 400 Robots Destroyed (27) 135 Value Destroyed (538) 538 Prototype IDs (0) 0 Alien Tech Used (0) 0 Bonus (-21) -21 TOTAL SCORE: 1052 Bonus ------- Friendly Fire -21 Cogmind --------- Core Integrity 0/250 Matter 146/300 Energy 265/265 System Corruption 0% Temperature Cool (0) Movement Walking (260) Ox2 Location -10/Mines Parts ------- > --- POWER (1) -------- Improved Ion Engine > --- PROPULSION (2) --- Light Treads Carbon-fiber Leg > --- UTILITY (2) ------ Large Storage Unit > --- WEAPON (2) ------- Beamcaster Grenade Launcher > --- INVENTORY (15) --- Carbon-fiber Leg Cooling System Medium Storage Unit Seismic Detector Seismic Detector Grenade Launcher Mining Laser Peak State ------------ > --- POWER ------------ Improved Ion Engine > --- PROPULSION ------- Light Treads Carbon-fiber Leg > --- UTILITY ---------- Large Storage Unit Light Armor Plating > --- WEAPON ----------- Beamcaster Grenade Launcher > --- INVENTORY -------- Carbon-fiber Leg Cooling System Medium Storage Unit Seismic Detector Seismic Detector Grenade Launcher Mining Laser [Rating: 15] Favorites ----------- Power Improved Ion Engine Engine Improved Ion Engine Propulsion Light Treads Treads Light Treads Leg Aluminum Leg Utility Large Storage Unit Device Seismic Detector Storage Large Storage Unit Protection Light Armor Plating Weapon Particle Cannon Energy Gun EM Pulse Gun Energy Cannon Particle Cannon Ballistic Gun Light Assault Rifle Launcher Grenade Launcher Build | -11 -10 -10 ------- Run | Yrd Mat Min Slots Evolved . | . . . Power . | . . . Propulsion . | . . . Utility . | . . . Weapon . | . . . Parts Attached 25 | 7 13 5 Power 4 | 1 2 1 Engine 4 | 1 2 1 Core . | . . . Reactor . | . . . Propulsion 7 | 2 4 1 Treads 4 | 2 2 . Leg 3 | . 2 1 Wheel . | . . . Hover . | . . . Flight . | . . . Utility 6 | 2 4 . Device 2 | 1 1 . Storage 3 | 1 2 . Processor . | . . . Hackware . | . . . Protection 1 | . 1 . Artifact . | . . . Weapon 8 | 2 3 3 Energy Gun 2 | . 1 1 Energy Cannon 2 | . 2 . Ballistic Gun 2 | 2 . . Ballistic Cannon . | . . . Launcher 2 | . . 2 Special Weapon . | . . . Impact Weapon . | . . . Slashing Weapon . | . . . Piercing Weapon . | . . . Special Melee Weapon . | . . . Unidentified Prototypes . | . . . Parts Lost 10 | . 2 8 Power 2 | . 1 1 Propulsion 3 | . . 3 Utility 2 | . . 2 Weapon 3 | . 1 2 Highest Loss Streak 6 | . 2 6 To Critical Strikes . | . . . Average Backups 8 | 4 8 8 Power . | . . . Propulsion 2 | 2 3 . Utility 3 | . 2 4 Weapon 2 | . 1 2 Tool/Special . | . . . Unused Backups 5 | . 2 3 Power . | . . . Propulsion 3 | . 2 1 Utility 2 | . . 2 Weapon . | . . . Tool/Special . | . . . Average Slot Usage (%) 97 | . 99 95 Engine 13 | . 13 13 Treads 15 | . 7 23 Leg 11 | . 20 1 Device 11 | . 13 9 Storage 14 | . 14 14 Protection 2 | . . 4 Energy Cannon 15 | . 12 18 Ballistic Gun 8 | . 14 . Launcher 3 | . . 7 Peak Build Rating 15 | 7 12 15 Average Rating 9 | 5 9 11 On Entrance 6 | . 7 12 Avg Prop Armor Cover (%) 9 | . . 9 Naked Turns . | . . . Heaviest Build 38 | 12 37 38 Greatest Support 40 | 40 40 40 Greatest Overweight (x) 2 | . 2 2 Average Overweight (x) . | . . . Largest Inventory Capacity 15 | 8 15 15 Average Capacity 12 | 7 10 15 Most Carried 11 | 7 11 11 Average Carried 8 | 4 8 8 Final Capacity 15 | 8 15 15 Final Carried 11 | 7 11 7 Class Distribution -------------------- 96% | Mutant 3% | Scavenger-Mutant Dominant Class ---------------- Mutant | -10/Materials Mutant | -10/Mines Resources | -11 -10 -10 ----------- Run | Yrd Mat Min Matter Collected 800 | 310 339 151 Remotely . | . . . Salvage Created 1235 | 145 942 148 Parts 61 | 11 47 3 Haulers Intercepted 2 | . 2 . Recyclers Shooed 7 | . 7 . Parts Field Recycled . | . . . Retrieved Matter . | . . . Parts Self-Destructed . | . . . Prevented . | . . . Parts Restored . | . . . Kills | -11 -10 -10 ------- Run | Yrd Mat Min Combat Hostiles Destroyed 32 | . 12 20 Guns 6 | . 6 . Cannons 9 | . 6 3 AOE 17 | . . 17 Classes Destroyed 8 | 3 4 1 Worker 2 | 2 . . Tunneler 2 | 2 . . Hauler 2 | . 2 . Recycler 6 | 1 5 . Watcher 1 | . 1 . Swarmer 3 | . 3 . Grunt 11 | . 9 2 Assembled 18 | . . 18 Best Kill Streak 15 | 3 5 15 Combat Bots Only 15 | . 3 15 Max Kills in Single Turn 3 | 1 1 3 Gunslinging . | . . . Exploded 3 | . . 3 Melee . | . . . Uniques/NPCs Destroyed . | . . . Combat | -11 -10 -10 -------- Run | Yrd Mat Min Hostile Shots Fired 144 | . 75 69 Missed 29 | . 15 14 Hits 115 | . 60 55 Melee 4 | . . 4 Projectile 111 | . 60 51 Damage Taken 1791 | . 765 1026 Core 252 | . 98 154 Absorbed by Shields . | . . . Core Remaining (%) 100 | 100 . . Volleys Fired 114 | 12 74 28 Largest 2 | 2 2 2 Hottest 136 | 40 136 136 Shots Fired 213 | 24 146 43 Gun 131 | 24 107 . Cannon 59 | . 39 20 Launcher 23 | . . 23 Special . | . . . Kinetic 123 | 24 99 . Thermal 59 | . 39 20 Explosive 23 | . . 23 Electromagnetic 8 | . 8 . Robot Hit Streak 8 | 8 7 8 Robot Miss Streak 4 | 2 4 3 Penetration Max . | . . . Secondary Targets 1 | . 1 . Max Gunslinging Chain 1 | . 1 . Shots Hit Robots 122 | 17 88 17 Core Hits 85 | 7 36 42 Critical Kills . | . . . Critical Parts Destroyed . | . . . Critical Strikes . | . . . Melee Attacks . | . . . Impact . | . . . Slashing . | . . . Piercing . | . . . Sneak Attacks . | . . . Combat Hostiles . | . . . Follow-up Attacks . | . . . Damage Inflicted 2702 | 188 1162 1352 Guns 891 | 183 708 . Cannons 701 | . 451 250 Explosions 1097 | . . 1097 Melee . | . . . Ramming 13 | 5 3 5 Kinetic 810 | 183 627 . Thermal 701 | . 451 250 Explosive 1097 | . . 1097 Electromagnetic 81 | . 81 . Impact . | . . . Slashing . | . . . Piercing . | . . . Highest Corruption . | . . . Average Corruption . | . . . Corruption Purged . | . . . Corruption Blocked . | . . . Overload Shots . | . . . Overflow Damage 16 | . . 16 Projectiles . | . . . Explosions 16 | . . 16 Melee . | . . . Knockbacks . | . . . Impact . | . . . Kinetic . | . . . Secondary . | . . . Self-Inflicted Damage 235 | . . 235 Shots 7 | . . 7 Rammed 3 | 2 . 1 Targets Rammed 4 | 2 1 1 Kicked 1 | . 1 . Crushed . | . . . Highest Temperature 288 | . 288 84 Average Temperature 59 | . 68 33 Received Heat Transfer 586 | . 408 178 Siege Activations . | . . . Martial Activations . | . . . Shielding Activations . | . . . Robots Disrupted . | . . . Combat Hostiles . | . . . Robots Corrupted . | . . . Combat Hostiles . | . . . Parts Fried . | . . . Impact Corruptions . | . . . Robots Melted . | . . . Combat Hostiles . | . . . Parts Melted 2 | . 2 . Heat Transferred 1221 | . 777 444 Parts Sabotaged . | . . . Parts Stolen . | . . . Parts Stripped . | . . . Power Chain Reactions . | . . . Alert | -11 -10 -10 ------- Run | Yrd Mat Min Maximum Alert Level . | . . . Low Security (%) 100 | 100 100 100 Level 1 . | . . . Level 2 . | . . . Level 3 . | . . . Level 4 . | . . . Level 5 . | . . . High Security . | . . . Max Security . | . . . Peak Influence 110 | 10 110 51 Initial 31 | . . 31 Average 25 | 1 45 6 Influence Increases 523 | 25 368 130 Destroy 0b10 Robot/C 280 | . 240 40 Destroy 0b10 Robot/NC 65 | 25 40 . Destroy Leader 66 | . 56 10 Successful Hack 16 | . 16 . Disable Machine 15 | . 15 . Destroy Structure 81 | . 1 80 Influence Decreases 506 | 25 288 193 Entered New Map 49 | . . 49 Time Decay 417 | 25 288 104 Lost Part 40 | . . 40 Squads Dispatched 3 | . 3 . Investigation 2 | . 2 . Extermination . | . . . Reinforcement 1 | . 1 . Assault . | . . . Garrison . | . . . Intercept . | . . . Searches Triggered . | . . . Construction Impeded . | . . . Haulers Reinforced . | . . . Active Scanning Responses . | . . . Cargo Convoy Interrupts . | . . . Stealth | -11 -10 -10 --------- Run | Yrd Mat Min Distress Signals 4 | . 4 . Communications Jammed . | . . . Distress Signals . | . . . Times Spotted 45 | . 20 25 Peak Tracking Total 8 | . 4 8 Tactical Retreats . | . . . Traps | -11 -10 -10 ------- Run | Yrd Mat Min Traps Triggered 3 | . 3 . Indirectly . | . . . Trap Hack Attempts . | . . . Triggered . | . . . Disarmed . | . . . Reprogrammed . | . . . Reused . | . . . Traps Extracted . | . . . Installed . | . . . Triggered . | . . . Machines | -11 -10 -10 ---------- Run | Yrd Mat Min Machines Disabled 1 | . 1 . Max in Single Turn 1 | . 1 . Machines Repaired . | . . . Machines Dismantled . | . . . Machines Sabotaged . | . . . Overloaded Fab Kills . | . . . Hacking | -11 -10 -10 --------- Run | Yrd Mat Min Machines Accessed 2 | . 2 . Terminals 2 | . 2 . Fabricators . | . . . Repair Stations . | . . . Recycling Units . | . . . Scanalyzers . | . . . Garrison Access . | . . . Total Hacks 9 | . 9 . Successful 4 | . 4 . Failed 5 | . 5 . Catastrophic 1 | . 1 . Database Lockouts . | . . . Manual 8 | . 8 . Terminals 9 | . 9 . Fabricators . | . . . Repair Stations . | . . . Recycling Units . | . . . Scanalyzers . | . . . Garrison Access . | . . . Terminal Hacks 2 | . 2 . Robot Analysis 2 | . 2 . Fabricator Hacks . | . . . Repair Station Hacks . | . . . Recycling Unit Hacks . | . . . Scanalyzer . | . . . Garrison Access Hacks . | . . . Unauthorized Hacks 2 | . 2 . Terminals 2 | . 2 . Botnet 1 | . 1 . Skim 1 | . 1 . Fabricators . | . . . Repair Stations . | . . . Recycling Units . | . . . Scanalyzers . | . . . Garrison Access . | . . . Data Cores Recovered . | . . . Used . | . . . Hacking Detections 2 | . 2 . Full Trace Events . | . . . Feedback Events . | . . . Feedback Blocked . | . . . Robot Schematics Acquired . | . . . Robots Built . | . . . Authchips . | . . . Time . | . . . Total Robot Build Rating . | . . . Part Schematics Acquired . | . . . Parts Built . | . . . Authchips . | . . . Time . | . . . Total Part Build Rating . | . . . Part Studies Acquired . | . . . Parts Repaired . | . . . Time . | . . . Parts Recycled . | . . . Recycled Matter . | . . . Retrieved Matter . | . . . Retrieved Components . | . . . Parts Scanalyzed . | . . . Part Schematics Acquired . | . . . Parts Damaged . | . . . Bothacking | -11 -10 -10 ------------ Run | Yrd Mat Min Used RIF Installer . | . . . Robots Hacked . | . . . Non-combat . | . . . Combat . | . . . Robot Hacks Applied . | . . . Relay Couplers Released . | . . . Fabnet Peak Effective % . | . . . Robots Rewired . | . . . Allies Hacked . | . . . Hacks Repelled . | . . . Allies | -11 -10 -10 -------- Run | Yrd Mat Min Total Allies 2 | . . 2 Largest Group 2 | . . 2 Highest-Rated Group 41 | . . 41 Highest-Rated Ally 31 | . . 31 Total Orders . | . . . Ally Attacks 7 | . . 7 Total Damage 106 | . . 106 Kills 2 | . . 2 Allies Corrupted . | . . . Allies Melted . | . . . Intel | -11 -10 -10 ------- Run | Yrd Mat Min Active Infowar (turns) 752 | 60 692 . Seismic 752 | 60 692 . Robot Analysis Total 2 | . 2 . Derelict Logs Recovered 1 | . . 1 Drone Launches . | . . . Drone Recoveries . | . . . Exploration | -11 -10 -10 ------------- Run | Yrd Mat Min Turns Passed 1836 | 144 914 778 Spaces Moved 857 | 58 425 374 Core 2 | 2 . . Treads 512 | 56 113 343 Legs 343 | . 312 31 Wheels . | . . . Hover . | . . . Flight . | . . . Fastest Speed 50 | 50 120 160 Average Speed 163 | 156 152 177 Slowest Speed 260 | 160 260 260 Overloaded Moves . | . . . Propulsion Burnouts . | . . . Robots Hopped . | . . . Potential Cave-ins . | . . . Cave-ins Triggered . | . . . Exploration Rate (%) 50 | 5 81 66 Regions Visited 2 Branch Regions 1 Pre-discovered Areas . | . . . Known Exits Taken . | . . . Unknown Exits Taken 2 | 1 1 . Scrap Searched 1 | . . 1 Spaces Dug 11 | . . 11 Terrain Destroyed 142 | . . 142 Melee . | . . . Projectile . | . . . AOE 142 | . . 142 Terrain Rammed . | . . . Walls Destroyed . | . . . Machines Disabled . | . . . Actions | -11 -10 -10 --------- Run | Yrd Mat Min Total 1082 | 85 556 441 Wait 44 | . 20 24 Move 855 | 57 424 374 Hop . | . . . Pick Up 19 | 7 10 2 Fast Attach 12 | 7 4 1 Attach 13 | . 6 7 Detach 3 | . 2 1 Swap 10 | . 7 3 Drop 8 | . 8 . Fire 114 | 12 74 28 Melee . | . . . Ram . | . . . Kick 1 | . 1 . Crush 3 | 2 . 1 Escape Stasis . | . . . Rewire . | . . . Trap . | . . . Miscellaneous . | . . . Route ------- -11/Scrapyard -10/Materials (discovered 4 exits: [*Mat x3] / [*Min]) -10/Mines (discovered 1 exit: [*Mat]) History --------- Turn | Location | Event 27 | -11/Scrapyard | Discovered new exit (range 16) 145 | -11/Scrapyard | Entered Materials 290 | -10/Materials | Discovered new exit (range 16) 314 | -10/Materials | Build established: Mutant 494 | -10/Materials | Discovered new exit (range 4) 905 | -10/Materials | Discovered new exit (range 3) 1016 | -10/Materials | Discovered new exit (range 14) 1059 | -10/Materials | Entered Mines 1076 | -10/Mines | Core integrity fell below 50% 1110 | -10/Mines | Discovered new exit (range 4) 1214 | -10/Mines | Learned Materials terminal intel 1446 | -10/Mines | Assembled infested the area 1451 | -10/Mines | Assisted by a Guerilla fighting off Assembled 1606 | -10/Mines | Core integrity fell below 20% 1648 | -10/Mines | Lost 6 parts (1p2n1u2w) 1656 | -10/Mines | Destroyed 15 combat bots 1837 | -10/Mines | Destroyed by S-10 Pest with Light Assault Rifle Last Messages --------------- 01647_ The unstable cave ceiling collapses. 01649_ K-01 Serf collects debris. 01655_ The unstable cave ceiling collapses. 01678_ Acquired 10 matter. 01687_ The unstable cave ceiling collapses. 01710_ U-05 Engineer lays Concrete. 01716_ U-05 Engineer builds a Wall. 01721_ The unstable cave ceiling collapses. 01721_ U-05 Engineer builds a Wall. 01721_ K-01 Serf collects debris. 01725_ U-05 Engineer builds a Wall. 01726_ Slammed into K-01 Serf. 01729_ U-05 Engineer lays Concrete. 01736_ U-05 Engineer builds a Wall. 01741_ Acquired 12 matter. 01746_ Acquired Carbon-fiber Leg. 01766_ Acquired 57 matter. 01803_ U-05 Engineer lays Concrete. 01832_ Lgt. Armor Plating destroyed. 01832_ Destroyed Lgt. Armor Plating. Map ----- +----------------------------------------------------+ | #???# ?? ##?????????????????????? | | #### #??# ##?# #?????????????????????? | | ???## ### #### #?????????????????????? | | ????# ## ## #?????????????????????? | | ????# ## ### #?????????????????????? | | ????# #####?# #??###?????????????????? | | ????# #?????# #?# #####?????????????? | | ????# #????## #?? ??????????????? | | ???## #????# ##? < #????????????????? | | ???# #????# %## #?????????????????? | | #??# ###????## % #?????????????????? | | ##?# #???????## # #?????????????????? | | ### ##???????## # #?????????????????? | | ##???????##### ## ###?????????????????? | | ##??????????##### #???????????????????? | | ### ##?????????????# #???????????????????? | | ##??# #????????????## #???????????????????? | | ##### #????????????# #???????????????????? | | # # ##???????????# ###???????????????????? | | #??#####????# #?????????????????????? | | #??# ##???# #?????????????????????? | | # #### ##### #???????? #???????????? | | ## ## ## z ##????? ###??????????? | | #### ## #### ##?????????? | | # # # ## s #?????????? | | ?### #?## #### @ #???????????? | | #?# ##??## ##??# #???????????? | | #### ##??### #???# s #???????????? | | ##???## ##??##### #####???????????? | | ##???# #??????? ##???????????????? | | #???## #????????#????????????????? | | % ######## #?????????????????????????? | | ##### #?????????????????????????? | | ### # # ## #?????????????????????????? | | ##?### # # ## #?????????????????????????? | | ##?????### # #?# #?????????????????????????? | | ###???###### # ### #?????????????????????????? | | ###?# #?????????????????????????? | | ### [ #?????????????????????????? | | # # # ##### #####?????????????????????????? | | ## # # # ######?????????????????????????????? | | # # ##??????????????????????????????????? | | #??????????????????????????????????? | | # ##??????????????????????????????????? | | # " #???????????????????????????????????? | | # ###???????????????????????????????????? | | ## ##?????????????????????????????????????? | | ### ##??????????????????????????????????????? | | #######???????????????????????????????????????? | | ??????????????????????????????????????????????? | +----------------------------------------------------+ Best States ------------- Heat Dissipation 47 Energy Generation 12 Energy Capacity 265 Matter Stores 300 Matter Capacity 300 Sight Range 16 Terrain Scan Density 10 Armor Coverage 150 Evasion (%) 55 Recoil Reduction 2 Item Schematics ----------------- None Robot Schematics ------------------ None Fabricated ------------ Nothing Repaired ---------- Nothing Studied --------- None Alien Tech Used ----------------- None Achievements -------------- None Challenges ------------ None Game ------ Seed ImpactStrikeRigger Manual? 0 Play Time 00:11:47 Cumulative 234.8 hours Start 2025.12.25 @ 20:37:55 End 2025.12.25 @ 21:18:05 Sessions 1 Manual Loads 0 Difficulty Rogue Special Mode None Game No. 218 Rogue 218 Adventurer 0 Explorer 0 Win Type - Total 10 Types 7/0/2/0/0/0/0/0/0/1 Lore% 86 Gallery% 77 Achievement% 60 Wizard Run 0 Options --------- Layout 1 ASCII 0 Keyboard 1 Movement Arrows Keybinds 0 Fullscreen 1 Font 24/Smallcaps Map View 50x40 Zoom Use 0% Tactical HUD 1 Map Filters NONE Filters NONE Steam 1 RUN: 58dff792-2d02-4a97-91cf-70681631aa88